bitfinex/quotes_SOLUSD_20241121
["timestamp","ask_amount","ask_price","bid_price","bid_amount"]
[1732223672992,12.1112277,253.63,253.52,3.90748815]
[1732223673191,12.1112277,253.63,253.54,3.90633206]
[1732223673986,12.1112277,253.63,253.55,3.90633206]
[1732223675397,12.1112277,253.63,253.56,3.90633206]
[1732223675798,12.1112277,253.67,253.56,3.90633206]
[1732223676099,12.1112277,253.76,253.6,3.90633206]
[1732223676100,12.1112277,253.69,253.6,3.90633206]
[1732223676500,12.1112277,253.71,253.6,3.90460914]
[1732223676699,12.1112277,253.71,253.62,3.90460914]
[1732223676905,12.1112277,253.71,253.61,3.90460914]
[1732223677597,12.1112277,253.71,253.62,3.90460914]
[1732223677801,12.1112277,253.71,253.62,12.75120914]
[1732223677994,12.1112277,253.71,253.63,3.90460914]
[1732223680121,12.1112277,253.71,253.64,3.90460914]
[1732223682404,12.1112277,253.69,253.63,3.90460914]
[1732223682608,12.1112277,253.65,253.63,3.90460914]
[1732223683391,12.1112277,253.65,253.62,8.8466]
[1732223684586,12.1112277,253.67,253.62,8.8466]
[1732223685220,12.1112277,253.67,253.62,12.75120914]
[1732223685389,12.1112277,253.67,253.62,8.8466]
[1732223686389,12.1112277,253.67,253.62,12.75120914]
[1732223687007,12.1112277,253.69,253.62,12.75120914]
[1732223687209,12.1112277,253.68,253.63,3.90460914]
[1732223687418,12.1112277,253.68,253.62,12.75120914]
[1732223689131,12.1112277,253.68,253.63,3.90460914]
[1732223689495,12.1112277,253.68,253.62,12.75120914]
[1732223690502,12.1112277,253.68,253.62,8.8466]
[1732223690805,12.1112277,253.68,253.62,12.74728072]
[1732223692518,12.1112277,253.68,253.62,8.8466]
[1732223692693,7.74435662,253.68,253.62,12.74728072]
[1732223693390,7.74435662,253.68,253.62,8.8466]
[1732223693609,7.74435662,253.68,253.62,12.7451238]
[1732223696098,7.74435662,253.68,253.63,3.8985238]
[1732223696302,23.776884,253.75,253.62,12.7451238]
[1732223696515,7.74435662,253.69,253.63,3.8985238]
[1732223697697,7.74435662,253.69,253.62,12.7451238]
[1732223700404,7.74435662,253.69,253.62,12.7420078]
[1732223702528,7.74435662,253.63,253.6,3.8954078]
[1732223702818,7.74435662,253.61,253.59,25.3595078]
[1732223703127,7.74435662,253.61,253.59,21.4641]
[1732223703427,37.021784,253.75,253.59,21.4641]
[1732223703725,7.74435662,253.66,253.59,21.4641]
[1732223704413,7.74435662,253.64,253.59,21.4641]
[1732223707437,7.74435662,253.66,253.59,21.4641]
[1732223707729,7.74435662,253.65,253.59,21.4641]
[1732223709221,23.776884,253.73,253.59,21.4641]
[1732223709423,2.5,253.79,253.59,21.4641]
[1732223709608,7.74435662,253.73,253.59,27.62109995]
[1732223710021,7.74435662,253.71,253.59,27.62109995]
[1732223710228,7.74435662,253.69,253.59,27.62109995]
[1732223710417,7.74435662,253.67,253.59,27.62109995]
[1732223710821,7.74435662,253.65,253.59,27.62109995]
[1732223711019,7.74435662,253.62,253.59,27.62109995]
[1732223711231,7.74435662,253.6,253.55,14.29919995]
[1732223711404,7.74435662,253.58,253.54,27.80569995]
[1732223711607,7.74435662,253.58,253.54,21.6487]
[1732223712926,7.74435662,253.6,253.54,21.6487]
[1732223713819,40.977984,253.71,253.54,21.6487]
[1732223714020,7.74435662,253.63,253.54,27.80569995]
[1732223714207,7.74435662,253.63,253.55,6.15699995]
[1732223715223,7.74435662,253.61,253.55,6.15699995]
[1732223715420,7.74435662,253.59,253.54,27.80569995]
[1732223715621,7.74435662,253.57,253.54,21.6487]
[1732223717313,7.74435662,253.57,253.55,3.88148409]
[1732223717509,7.74435662,253.57,253.56,3.88148409]
[1732223717706,7.74435662,253.57,253.56,3.88333097]
[1732223718213,31.52124062,253.57,253.56,3.88333097]
[1732223719310,31.52124062,253.57,253.43,8.3104]
[1732223719311,23.776884,253.56,253.5,6.15699995]
[1732223719619,23.776884,253.56,253.51,6.15699995]
[1732223720308,31.52124062,253.56,253.52,6.15699995]
[1732223721438,31.52124062,253.56,253.53,6.15699995]
[1732223723420,30.97742648,253.63,253.54,14.92633889]
[1732223723730,23.776884,253.54,253.52,6.15699995]
[1732223723943,7.74435662,253.53,253.5,6.15699995]
[1732223724119,23.776884,253.54,253.51,8.76941845]
[1732223724320,23.776884,253.54,253.52,3.85866998]
[1732223724516,23.776884,253.54,253.53,3.85866998]
[1732223724753,31.52124062,253.54,253.53,3.85866998]
[1732223726440,31.52124062,253.54,253.46,3.85721458]
[1732223726743,7.74435662,253.47,253.44,6.15699995]
[1732223726943,7.74435662,253.45,253.43,12.31399991]
[1732223727158,7.74435662,253.45,253.44,10.02029574]
[1732223727324,7.74435662,253.47,253.44,10.02029574]
[1732223727645,7.74435662,253.47,253.45,3.85512712]
[1732223727832,7.74435662,253.47,253.46,3.85512712]
[1732223728229,7.74435662,253.49,253.46,3.85512712]
[1732223728435,7.74435662,253.49,253.47,3.85512712]
[1732223728671,7.74435662,253.49,253.48,3.85512712]
[1732223729345,7.74435662,253.49,253.48,8.82462203]
[1732223729852,13.2596,253.57,253.48,4.96831918]
[1732223730038,7.74435662,253.51,253.5,4.88579142]
[1732223730251,7.74435662,253.51,253.5,4.96762801]
[1732223730552,7.74435662,253.51,253.5,8.82275513]
[1732223730748,7.74435662,253.51,253.5,4.96762801]
[1732223731136,7.74435662,253.54,253.5,8.82275513]
[1732223731336,7.74435662,253.55,253.51,8.82275513]
[1732223731645,7.74435662,253.55,253.54,4.88322452]
[1732223731849,7.74435662,253.55,253.54,9.85085253]
[1732223732456,7.74435662,253.55,253.54,4.96762801]
[1732223733347,44.23702648,253.63,253.54,8.82275513]
[1732223733551,7.74435662,253.58,253.56,4.8824097]
[1732223733740,7.74435662,253.58,253.57,8.82275513]
[1732223733941,7.74435662,253.59,253.57,8.82275513]
[1732223734129,7.74435662,253.59,253.58,8.82275513]
[1732223734948,3.942,253.68,253.58,8.82275513]
[1732223734949,13.1769,253.75,253.62,162.7]
[1732223735154,7.74435662,253.68,253.63,13.70481792]
[1732223735336,7.74435662,253.68,253.64,8.82275513]
[1732223735534,7.74435662,253.68,253.65,8.82275513]
[1732223735744,7.74435662,253.69,253.66,8.82275513]
[1732223735930,7.74435662,253.69,253.67,8.82275513]
[1732223736133,13.1769,253.75,253.68,8.82275513]
[1732223736333,23.776884,253.68,253.65,4.88206279]
[1732223736541,23.776884,253.68,253.66,9.21229163]
[1732223736743,23.776884,253.68,253.67,4.30136341]
[1732223737065,23.776884,253.68,253.67,9.21256795]
[1732223737636,31.52124062,253.68,253.67,9.21256795]
[1732223738747,35.88424162,253.68,253.67,9.21256795]
[1732223739150,23.776884,253.68,253.67,9.21256795]
[1732223739479,12.10735762,253.74,253.67,9.21256795]
[1732223739688,12.10735762,253.74,253.7,4.88194605]
[1732223739963,12.10735762,253.72,253.71,9.21256795]
[1732223740165,12.10735762,253.72,253.71,9.21285262]
[1732223740466,12.10735762,253.72,253.71,4.30136341]
[1732223740762,12.10735762,253.72,253.71,9.21311421]
[1732223741074,12.10735762,253.72,253.69,4.21306771]
[1732223741268,12.10735762,253.72,253.62,6.16516862]
[1732223741269,12.10735762,253.7,253.62,6.16516862]
[1732223741439,12.10735762,253.63,253.61,6.16516862]
[1732223741759,12.10735762,253.63,253.62,4.21365704]
[1732223741959,12.10735762,253.63,253.62,10.37882566]
[1732223742160,12.10735762,253.63,253.62,4.21365704]
[1732223742538,12.10735762,253.63,253.62,10.37882566]
[1732223742870,12.10735762,253.63,253.62,4.21365704]
[1732223743367,12.10735762,253.63,253.61,6.16516862]
[1732223743667,12.10735762,253.63,253.62,4.21461647]
[1732223746083,12.10735762,253.65,253.62,10.37978509]
[1732223746280,12.10735762,253.65,253.63,4.21461647]
[1732223746471,12.10735762,253.65,253.64,4.21461647]
[1732223748165,13.1769,253.91,253.7,20.1122]
[1732223748479,19.2945044,254.11,253.7,20.1122]
[1732223748480,12.10735762,253.83,253.73,6.15341975]
[1732223748667,12.10735762,253.85,253.76,6.15341975]
[1732223748867,12.10735762,253.85,253.77,10.36803622]
[1732223749090,12.10735762,253.84,253.79,6.15341975]
[1732223749286,2.5,253.96,253.79,6.15341975]
[1732223749287,12.10735762,253.82,253.8,4.21461647]
[1732223749467,12.10735762,253.82,253.81,4.21461647]
[1732223750755,12.10735762,253.82,253.75,4.08718719]
[1732223750960,12.10735762,253.79,253.76,4.08718719]
[1732223751160,12.10735762,253.79,253.77,4.08718719]
[1732223751379,12.10735762,253.79,253.78,4.08718719]
[1732223751581,12.10735762,253.8,253.78,4.08718719]
[1732223751789,12.10735762,253.8,253.79,4.08718719]
[1732223752272,12.10735762,253.8,253.75,4.08718719]
[1732223752473,12.10735762,253.76,253.71,6.15341975]
[1732223752664,12.10735762,253.76,253.72,4.0838454]
[1732223752988,12.10735762,253.74,253.73,4.0838454]
[1732223753561,12.10735762,253.74,253.7,26.26561975]
[1732223753888,12.10735762,253.74,253.71,4.08283438]
[1732223754083,12.10735762,253.74,253.72,4.08283438]
[1732223754381,12.10735762,253.74,253.73,4.08283438]
[1732223755367,12.10735762,253.74,253.71,4.08283438]
[1732223755570,12.10735762,253.74,253.72,4.08283438]
[1732223755880,12.10735762,253.74,253.71,4.08283438]
[1732223756185,12.10735762,253.74,253.72,4.08283438]
[1732223756385,12.10735762,253.74,253.71,4.08283438]
[1732223756601,12.10735762,253.74,253.72,4.08051518]
[1732223756771,12.10735762,253.74,253.73,4.08051518]
[1732223756967,12.10735762,253.74,253.71,4.08051518]
[1732223757287,12.10735762,253.74,253.72,4.08051518]
[1732223757483,12.10735762,253.74,253.73,4.08051518]
[1732223757672,12.10735762,253.74,253.71,4.08051518]
[1732223757874,12.10735762,253.74,253.72,4.08051518]
[1732223758079,12.10735762,253.74,253.73,4.08051518]
[1732223758378,12.10735762,253.74,253.71,4.08051518]
[1732223758578,12.10735762,253.74,253.72,4.08051518]
[1732223758788,12.10735762,253.74,253.73,4.08051518]
[1732223758973,12.10735762,253.74,253.71,4.08051518]
[1732223759289,12.10735762,253.74,253.7,20.1122]
[1732223759290,2.5,253.8,253.72,4.08051518]
[1732223759468,12.10735762,253.73,253.71,4.08051518]
[1732223759671,12.10735762,253.72,253.68,4.07805262]
[1732223759886,12.10735762,253.71,253.69,4.07805262]
[1732223760074,12.10735762,253.73,253.7,4.07805262]
[1732223760405,12.10735762,253.73,253.71,4.07805262]
[1732223760781,12.10735762,253.73,253.68,4.07805262]
[1732223760973,12.10735762,253.73,253.69,4.07805262]
[1732223761185,12.10735762,253.74,253.7,4.07805262]
[1732223761385,12.10735762,253.74,253.71,4.07805262]
[1732223761590,12.10735762,253.74,253.67,6.15341975]
[1732223761591,12.10735762,253.73,253.68,4.07805262]
[1732223761770,12.10735762,253.73,253.69,4.07805262]
[1732223761968,12.10735762,253.73,253.7,4.07805262]
[1732223762275,12.10735762,253.73,253.71,4.07805262]
[1732223762480,12.10735762,253.73,253.68,4.07805262]
[1732223762702,12.10735762,253.73,253.69,4.07805262]
[1732223762881,12.10735762,253.73,253.7,4.07805262]
[1732223763182,12.10735762,253.73,253.71,4.07805262]
[1732223763387,12.10735762,253.74,253.68,4.07805262]
[1732223763686,12.10735762,253.74,253.7,3.88998376]
[1732223764596,12.10735762,253.74,253.71,3.88998376]
[1732223764785,12.10735762,253.72,253.71,3.88998376]
[1732223764969,12.10735762,253.72,253.67,3.88998376]
[1732223765172,12.10735762,253.69,253.67,3.88998376]
[1732223765384,12.10735762,253.69,253.68,3.88998376]
[1732223765581,12.10735762,253.69,253.67,3.88998376]
[1732223765972,12.10735762,253.69,253.66,3.88998376]
[1732223766284,12.10735762,253.7,253.66,3.88998376]
[1732223767197,12.10735762,253.72,253.67,3.88998376]
[1732223767689,23.776884,253.81,253.64,21.5468]
[1732223767690,12.10735762,253.74,253.69,3.88998376]
[1732223768597,12.10735762,253.75,253.7,3.88998376]
[1732223769303,12.10735762,253.72,253.7,3.88998376]
[1732223769811,12.10735762,253.73,253.7,3.88998376]
[1732223770005,12.10735762,253.73,253.71,3.88998376]
[1732223770324,12.10735762,253.8,253.71,3.88998376]
[1732223770485,12.10735762,253.81,253.76,3.8917596]
[1732223770810,12.10735762,253.8,253.77,3.8917596]
[1732223770996,12.10735762,253.81,253.76,3.8917596]
[1732223771192,12.10735762,253.81,253.77,3.8917596]
[1732223771597,12.10735762,253.81,253.78,3.8917596]
[1732223772086,12.10735762,253.79,253.78,3.8917596]
[1732223772892,12.10735762,253.79,253.72,6.15341975]
[1732223773199,23.776884,253.85,253.76,3.89409054]
[1732223773507,23.776884,253.87,253.76,3.89409054]
[1732223773812,23.776884,253.85,253.76,3.89409054]
[1732223774385,23.776884,253.87,253.77,3.89409054]
[1732223774593,12.10735762,253.78,253.77,3.89409054]
[1732223775585,12.10735762,253.78,253.71,6.15341975]
[1732223775881,23.776884,253.87,253.69,34.24593951]
[1732223775882,12.10735762,253.72,253.69,21.9391]
[1732223776094,12.10735762,253.7,253.69,21.9391]
[1732223776701,12.10735762,253.7,253.64,6.15341975]
[1732223777007,12.10735762,253.68,253.63,27.72681975]
[1732223777308,12.10735762,253.68,253.64,6.15341975]
[1732223777508,12.10735762,253.68,253.63,27.72681975]
[1732223777882,12.10735762,253.68,253.65,1.1827]
[1732223778083,12.10735762,253.7,253.65,1.1827]
[1732223778284,12.10735762,253.72,253.65,1.1827]
[1732223778518,12.10735762,253.74,253.65,1.1827]
[1732223779079,12.10735762,253.7,253.65,7.0963]
[1732223779610,12.10735762,253.7,253.65,10.0531]
[1732223781107,12.10735762,253.68,253.65,10.0531]
[1732223781309,12.10735762,253.66,253.65,10.0531]
[1732223782205,2.5,253.77,253.65,10.0531]
[1732223782394,12.10735762,253.7,253.65,16.20651975]
[1732223782712,12.10735762,253.7,253.69,3.91169243]
[1732223783505,12.10735762,253.7,253.69,5.09419243]
[1732223783709,12.10735762,253.72,253.69,8.05049243]
[1732223783892,12.10735762,253.74,253.7,3.91169243]
[1732223784099,12.10735762,253.76,253.73,3.91169243]
[1732223784417,12.10735762,253.76,253.74,3.91169243]
[1732223784712,12.10735762,253.76,253.75,3.91169243]
[1732223784918,12.10735762,253.76,253.7,6.15341975]
[1732223784919,12.10735762,253.76,253.74,3.91169243]
[1732223785403,12.10735762,253.76,253.73,3.91169243]
[1732223785602,12.10735762,253.76,253.74,14.20311218]
[1732223785811,12.10735762,253.76,253.74,10.29141975]
[1732223786185,12.10735762,253.8,253.74,16.20291975]
[1732223786500,12.10735762,253.8,253.77,3.91281224]
[1732223786693,12.10735762,253.8,253.78,3.91281224]
[1732223787206,12.10735762,253.8,253.79,3.91281224]
[1732223787421,12.10735762,253.8,253.78,1.1821]
[1732223787597,23.776884,253.79,253.78,1.1821]
[1732223790103,23.776884,253.79,253.76,5.09501224]
[1732223790410,23.776884,253.76,253.75,1.1822]
[1732223790707,35.88424162,253.76,253.75,5.09501224]
[1732223790918,35.88424162,253.76,253.75,1.1822]
[1732223792102,35.8741977,253.76,253.75,1.1822]
[1732223793917,35.8741977,253.76,253.74,2.9557]
[1732223794103,35.8741977,253.76,253.74,4.138]
[1732223795422,35.8741977,253.76,253.74,8.05081224]
[1732223796290,12.0973137,253.76,253.74,8.05081224]
[1732223796490,12.0973137,253.76,253.75,3.91281224]
[1732223797223,12.0973137,253.76,253.74,8.05081224]
[1732223797625,12.0973137,253.76,253.74,14.20423199]
[1732223797800,23.776884,253.75,253.74,14.20423199]
[1732223798212,23.776884,253.75,253.74,4.138]
[1732223798719,23.776884,253.75,253.74,2.9557]
[1732223798920,23.776884,253.75,253.73,6.15341975]
[1732223799249,23.776884,253.73,253.72,6.15341975]
[1732223799722,23.776884,253.73,253.71,10.07619192]
[1732223799902,35.8741977,253.72,253.71,3.92277217]
[1732223800097,23.776884,253.71,253.7,3.92277217]
[1732223800393,35.8741977,253.71,253.7,3.92277217]
[1732223800609,35.8741977,253.71,253.69,3.92277217]
[1732223801708,35.8741977,253.71,253.69,8.06157217]
[1732223802012,12.0973137,253.71,253.69,4.1388]
[1732223802616,12.0973137,253.71,253.69,16.44563951]
[1732223804120,12.0973137,253.71,253.69,12.30683951]
[1732223804332,12.0973137,253.71,253.69,15.06603951]
[1732223804919,12.0973137,253.71,253.7,12.30683951]
[1732223807107,12.0973137,253.71,253.69,2.7592]
[1732223807311,12.0973137,253.71,253.7,12.35377947]
[1732223807518,12.0973137,253.71,253.69,27.37287903]
[1732223808505,12.0973137,253.77,253.7,19.8913]
[1732223808715,12.0973137,253.77,253.75,12.35330296]
[1732223808909,12.0973137,253.77,253.76,0.7881]
[1732223809530,12.0973137,253.79,253.76,6.96294183]
[1732223809747,12.0973137,253.89,253.76,6.96294183]
[1732223809748,12.0973137,253.81,253.77,6.17484183]
[1732223809926,12.0973137,253.81,253.76,6.6991]
[1732223809927,12.0973137,253.81,253.78,6.17484183]
[1732223810119,12.0973137,253.82,253.78,6.17484183]
[1732223810428,12.0973137,253.82,253.81,3.91909462]
[1732223810738,12.0973137,253.82,253.8,3.91909462]
[1732223810913,12.0973137,253.82,253.81,0.7879]
[1732223811405,12.0973137,253.82,253.81,5.68640387]
[1732223811614,12.0973137,253.82,253.81,0.7879]
[1732223812433,12.0973137,253.82,253.81,4.70699462]
[1732223813430,12.0973137,253.82,253.81,0.7879]
[1732223813813,12.0973137,253.82,253.81,4.70699462]
[1732223814011,35.8741977,253.82,253.8,1.97]
[1732223814314,35.8741977,253.81,253.78,4.89745722]
[1732223814512,35.8741977,253.79,253.78,4.89745722]
[1732223814905,35.8741977,253.79,253.75,1.9703]
[1732223815110,12.0973137,253.76,253.75,2.7584]
[1732223815924,12.0973137,253.76,253.75,1.9703]
[1732223817023,12.0973137,253.78,253.75,5.88935157]
[1732223817340,16.8345,253.91,253.76,3.91905157]
[1732223817515,16.8345,253.91,253.78,3.91905157]
[1732223817837,16.8345,253.91,253.8,3.91905157]
[1732223817838,12.0973137,253.89,253.8,3.91905157]
[1732223818041,12.0973137,253.89,253.8,1.97]
[1732223818539,12.0973137,253.81,253.8,1.97]
[1732223819637,12.0973137,253.81,253.8,2.758]
[1732223820618,12.0973137,253.81,253.78,0.788]
[1732223820619,23.776884,253.8,253.78,0.788]
[1732223820817,12.0973137,253.79,253.77,3.91905157]
[1732223821010,12.0973137,253.79,253.77,4.70715157]
[1732223821333,12.0973137,253.79,253.77,3.91905157]
[1732223821334,23.776884,253.78,253.77,3.91905157]
[1732223821643,23.776884,253.78,253.75,2.7585]
[1732223821820,12.0973137,253.76,253.75,2.7585]
[1732223823132,35.8741977,253.76,253.74,3.91860351]
[1732223823317,23.776884,253.75,253.72,0.7882]
[1732223823514,12.0973137,253.73,253.72,0.7882]
[1732223824522,12.0973137,253.73,253.72,6.96304183]
[1732223824917,2.5,253.86,253.72,6.96304183]
[1732223824918,12.0973137,253.77,253.72,2.7588]
[1732223825118,12.0973137,253.77,253.74,6.17204795]
[1732223826429,12.0973137,253.77,253.76,0.7881]
[1732223827027,12.0973137,253.77,253.76,6.96014795]
[1732223827547,12.0973137,253.77,253.76,0.7881]
[1732223827744,12.0973137,253.79,253.76,0.7881]
[1732223828039,12.0973137,253.79,253.76,8.93044795]
[1732223828535,12.0973137,253.81,253.77,6.17204795]
[1732223829243,12.0973137,253.83,253.78,6.17204795]
[1732223829443,12.0973137,253.87,253.79,26.39556216]
[1732223829744,12.0973137,253.87,253.85,3.91785048]
[1732223829924,12.0973137,253.86,253.85,3.91785048]
[1732223830123,12.0973137,253.86,253.84,3.91785048]
[1732223830629,12.0973137,253.86,253.85,0.7878]
[1732223831524,12.0973137,253.86,253.83,5.88755048]
[1732223831525,35.8741977,253.86,253.84,3.91785048]
[1732223831738,12.0973137,253.85,253.83,6.67545048]
[1732223831941,12.0973137,253.84,253.83,6.67545048]
[1732223832138,12.0973137,253.84,253.83,6.67378692]
[1732223832542,12.0973137,253.84,253.83,2.7576]
[1732223832737,16.043657,254.05,253.84,28.6653]
[1732223833021,12.0973137,253.94,253.86,18.26936165]
[1732223833229,12.0973137,253.92,253.84,46.93466165]
[1732223833640,12.0973137,253.92,253.85,2.7574]
[1732223833846,12.0973137,253.92,253.85,8.92944795]
[1732223834141,12.0973137,253.92,253.85,2.7574]
[1732223834446,12.0973137,253.92,253.85,6.6967]
[1732223835047,12.0973137,253.9,253.85,6.6967]
[1732223836147,12.0973137,253.88,253.85,2.7574]
[1732223838326,12.0973137,253.92,253.85,2.7574]
[1732223841061,12.0973137,253.9,253.85,2.7574]
[1732223843047,12.0973137,253.92,253.85,18.7940137]
[1732223843248,12.0973137,253.94,253.86,12.0973137]
[1732223843440,12.0973137,253.95,253.87,12.0973137]
[1732223843641,12.0973137,253.94,253.86,12.0973137]
[1732223843951,16.0340137,254.02,253.85,6.6967]
[1732223843952,12.0973137,253.93,253.85,18.7940137]
[1732223844148,12.0973137,253.93,253.87,6.6963]
[1732223844356,12.0973137,253.98,253.9,12.0973137]
[1732223844728,12.0973137,253.98,253.91,12.0973137]
[1732223845154,12.0973137,253.98,253.9,12.0973137]
[1732223845533,12.0973137,253.98,253.91,12.0973137]
[1732223845737,12.0973137,253.98,253.9,12.0973137]
[1732223845931,12.0973137,253.99,253.91,12.0973137]
[1732223846464,12.0973137,254.01,253.94,12.0973137]
[1732223847163,12.0973137,254.02,253.94,12.0973137]
[1732223847542,12.0973137,254.02,253.95,6.694]
[1732223847731,12.0973137,254.0,253.95,6.694]
[1732223849169,3.9354,254.1,253.95,2.7563]
[1732223849170,12.0973137,253.97,253.95,2.7563]
[1732223849336,12.0973137,253.96,253.95,2.7563]
[1732223854739,12.0973137,253.97,253.95,2.7563]
[1732223857949,12.0973137,253.96,253.95,2.7563]
[1732223862768,35.8741977,253.96,253.87,6.17204795]
[1732223862947,12.0973137,253.92,253.88,1.9694]
[1732223863269,12.0973137,253.93,253.88,1.9694]
[1732223864072,12.0973137,253.92,253.88,1.9694]
[1732223864562,12.0973137,253.93,253.88,1.9694]
[1732223866270,12.0973137,253.95,253.88,1.9694]
[1732223866567,12.0973137,253.98,253.9,12.0973137]
[1732223866950,12.0973137,253.98,253.91,6.6952]
[1732223867770,12.0973137,253.97,253.91,6.6952]
[1732223868062,12.0973137,253.96,253.91,6.6952]
[1732223868473,12.0973137,254.02,253.93,2.7566]
[1732223868655,12.0973137,253.94,253.93,2.7566]
[1732223870163,12.0973137,253.94,253.91,3.9384]
[1732223870341,12.0973137,253.92,253.91,3.9384]
[1732223871441,12.0973137,253.92,253.87,1.9695]
[1732223871644,23.776884,254.01,253.87,1.9695]
[1732223871645,12.0973137,253.88,253.87,1.9695]
[1732223871964,12.0973137,253.89,253.87,1.9695]
[1732223872145,12.0973137,253.88,253.87,1.9695]
[1732223872750,7.73282287,253.88,253.87,1.9695]
[1732223874070,7.73282287,253.88,253.82,21.5495]
[1732223874263,7.73282287,253.85,253.83,4.1365]
[1732223874757,12.08514184,253.88,253.83,4.1365]
[1732223874961,12.08514184,253.9,253.83,16.22164184]
[1732223875161,12.08514184,253.9,253.83,15.03984184]
[1732223876857,12.08514184,253.9,253.83,22.13104184]
[1732223877875,12.08514184,253.9,253.83,10.0459]
[1732223878049,12.08514184,253.88,253.83,10.0459]
[1732223878450,12.08514184,253.86,253.83,10.0459]
[1732223878858,12.08514184,253.84,253.83,4.1365]
[1732223879258,12.08514184,253.84,253.83,2.9547]
[1732223879566,12.08514184,253.84,253.79,5.9102]
[1732223879767,12.08514184,253.81,253.79,5.9102]
[1732223882298,16.02384184,253.89,253.77,4.1375]
[1732223882299,12.08514184,253.8,253.77,4.1375]
[1732223882573,12.08514184,253.78,253.77,4.1375]
[1732223883397,12.08514184,253.78,253.77,2.9554]
[1732223884088,12.08514184,253.78,253.74,2.7587]
[1732223884286,12.08514184,253.76,253.74,2.7587]
[1732223886763,12.08514184,253.76,253.74,1.9705]
[1732223887458,12.08514184,253.78,253.74,1.9705]
[1732223887975,12.08514184,253.76,253.74,1.9705]
[1732223890695,12.08514184,253.78,253.74,1.9705]
[1732223893072,12.08514184,253.76,253.74,1.9705]
[1732223893273,12.08514184,253.8,253.74,1.9705]
[1732223894099,12.08514184,253.8,253.75,3.8983642]
[1732223894689,7.73750512,253.8,253.76,2.7584]
[1732223895996,7.73798228,253.79,253.76,2.7584]
[1732223896181,7.73798228,253.77,253.76,2.7584]
[1732223896574,7.73798228,253.77,253.76,1.9703]
[1732223898905,7.73798228,253.77,253.72,3.9413]
[1732223899197,12.3917,253.88,253.72,3.9413]
[1732223899198,12.3917,253.88,253.72,7.84002299]
[1732223899495,7.73798228,253.78,253.72,3.9413]
[1732223900684,3.9391,253.87,253.72,3.9413]
[1732223900886,7.73798228,253.79,253.72,3.9413]
[1732223901909,7.73798228,253.79,253.72,10.11334795]
[1732223902083,7.73798228,253.79,253.72,3.9413]
[1732223902509,7.73798228,253.79,253.72,6.7001]
[1732223902804,23.776884,253.88,253.72,12.87214795]
[1732223902979,7.73798228,253.83,253.73,6.17204795]
[1732223903380,7.73798228,253.83,253.74,6.17204795]
[1732223904289,7.73798228,253.83,253.75,6.6993]
[1732223904779,7.73798228,253.85,253.76,29.4797]
[1732223905780,7.73798228,253.89,253.76,35.65174795]
[1732223905977,7.73798228,253.89,253.78,6.17204795]
[1732223906180,3.9377,253.96,253.79,6.17204795]
[1732223906407,16.3293,254.0,253.8,6.6981]
[1732223906607,7.73798228,253.92,253.8,12.87014795]
[1732223906783,34.88862912,254.02,253.83,7.9703]
[1732223907100,7.73798228,253.93,253.84,6.17204795]
[1732223907601,7.73798228,253.93,253.85,6.17204795]
[1732223907918,7.73798228,253.93,253.83,7.9703]
[1732223907919,7.73798228,253.95,253.86,6.17204795]
[1732223908287,7.73798228,253.96,253.86,6.17204795]
[1732223908487,7.73798228,253.96,253.87,2.7573]
[1732223909805,7.73798228,253.96,253.87,6.6963]
[1732223911601,7.73798228,253.96,253.87,12.86834795]
[1732223911908,7.73798228,253.96,253.87,6.6963]
[1732223912200,7.73798228,253.96,253.87,12.86834795]
[1732223914594,23.776884,254.01,253.87,12.86834795]
[1732223914595,23.776884,254.02,253.87,12.86834795]
[1732223914909,12.3922,254.06,253.88,19.7656]
[1732223915101,12.45679885,254.09,253.88,19.7656]
[1732223915102,7.73798228,253.99,253.9,6.17204795]
[1732223915421,7.73798228,253.99,253.9,14.87704795]
[1732223915989,12.4569,254.12,253.91,6.17204795]
[1732223916205,7.73798228,254.06,253.92,27.38494795]
[1732223916413,7.73798228,254.06,253.93,6.17204795]
[1732223916993,7.73798228,254.06,253.94,6.6943]
[1732223917491,7.73798228,254.04,253.94,6.6943]
[1732223918087,20.0,254.11,253.94,6.6943]
[1732223918289,7.73798228,254.05,253.94,6.6943]
[1732223918500,7.73798228,254.05,253.94,12.86634795]
[1732223918718,7.73798228,254.03,253.94,12.86634795]
[1732223918909,7.73798228,254.03,253.94,6.6943]
[1732223920007,7.73798228,254.05,253.94,12.86634795]
[1732223920214,7.73798228,254.05,253.94,15.62053442]
[1732223920803,7.73798228,254.03,253.94,6.6943]
[1732223922393,27.712184,254.11,253.94,6.6943]
[1732223922594,7.73798228,254.04,253.94,6.6943]
[1732223925623,7.73798228,254.06,253.94,6.6943]
[1732223926007,7.73798228,254.06,253.95,7.989]
[1732223926824,7.73798228,254.06,253.96,6.6939]
[1732223927351,7.73798228,254.01,253.96,6.6939]
[1732223927500,7.73798228,254.0,253.96,6.6939]